bitfinex/quotes_SOLUSD_20220226
["timestamp","ask_amount","ask_price","bid_price","bid_amount"]
[1645898642518,1.41975783,90.598,90.552,16.3442]
[1645898642923,23.1445,90.599,90.552,16.3442]
[1645898648830,23.1445,90.599,90.552,13.8442]
[1645898655961,4.416,90.598,90.552,13.8442]
[1645898656159,23.1445,90.599,90.552,13.8442]
[1645898657462,23.1445,90.599,90.531,23.3635]
[1645898660265,23.1445,90.599,90.531,22.8635]
[1645898663470,23.4892,90.609,90.54,16.5698]
[1645898663665,23.4892,90.609,90.542,2.41328068]
[1645898664866,24.5972,90.608,90.542,2.41328068]
[1645898665468,24.5972,90.608,90.55,16.5677]
[1645898665766,24.5972,90.608,90.551,2.6669526]
[1645898667171,16.5682,90.63,90.551,2.6669526]
[1645898667469,0.30446613,90.649,90.561,45.36880963]
[1645898667669,22.7821,90.648,90.562,2.68403739]
[1645898667870,22.7821,90.648,90.563,2.38174109]
[1645898668269,22.7821,90.648,90.563,5.1285303]
[1645898668573,22.7821,90.648,90.564,2.74678921]
[1645898669571,22.7821,90.648,90.58,16.5615]
[1645898669770,116.28752813,90.647,90.542,2.74678921]
[1645898669970,114.92182463,90.647,90.529,16.7296]
[1645898670171,1.85060092,90.645,90.53,5.31568527]
[1645898670372,4.415,90.644,90.53,5.31568527]
[1645898670775,4.415,90.644,90.535,2.5593003]
[1645898671178,4.415,90.644,90.536,2.74678921]
[1645898671675,16.5662,90.64,90.56,16.5662]
[1645898671974,4.415,90.639,90.56,16.5662]
[1645898672378,24.7883,90.638,90.56,16.5662]
[1645898672577,4.415,90.637,90.56,16.5662]
[1645898673380,24.7883,90.638,90.56,16.5662]
[1645898674185,24.7883,90.638,90.54,16.5684]
[1645898674186,126.8678,90.63,90.54,16.5684]
[1645898674380,4.415,90.629,90.54,16.5684]
[1645898674582,6.18761284,90.629,90.54,16.5684]
[1645898674785,0.41564926,90.628,90.54,16.5684]
[1645898674984,4.415,90.627,90.54,16.5684]
[1645898675186,6.23121352,90.627,90.54,16.5684]
[1645898675585,16.5698,90.62,90.54,16.5684]
[1645898675985,0.30446613,90.597,90.54,16.5684]
[1645898678093,0.30446613,90.597,90.541,24.9951]
[1645898685221,0.30446613,90.597,90.55,16.5679]
[1645898685421,0.30446613,90.597,90.551,23.7184]
[1645898687023,0.30446613,90.597,90.551,40.2048]
[1645898687627,0.30446613,90.597,90.561,54.8547031]
[1645898687829,22.8761,90.638,90.563,2.36460376]
[1645898688627,22.8761,90.638,90.57,16.5625]
[1645898691429,22.8761,90.638,90.571,2.38952052]
[1645898691629,22.8761,90.638,90.58,16.5614]
[1645898691834,22.8761,90.638,90.581,24.7764]
[1645898693634,4.414,90.667,90.581,24.7764]
[1645898693835,27.3726,90.674,90.59,126.8606]
[1645898694033,22.9596,90.674,90.591,50.69142653]
[1645898694231,16.56019205,90.673,90.592,2.65724871]
[1645898694633,22.9596,90.674,90.593,23.1943]
[1645898694835,22.9596,90.674,90.594,2.77301254]
[1645898695034,22.9596,90.674,90.594,28.17751857]
[1645898695332,22.9596,90.674,90.595,3.0462856]
[1645898695533,22.9596,90.674,90.61,16.5558]
[1645898695736,22.9596,90.674,90.611,23.8915]
[1645898697540,22.9596,90.674,90.62,16.5553]
[1645898698543,22.9596,90.674,90.59,16.5598]
[1645898698744,23.16742463,90.674,90.59,16.5598]
[1645898699144,23.4876471,90.673,90.59,16.5598]
[1645898699342,110.3,90.672,90.581,3.01124022]
[1645898699544,4.413,90.671,90.568,26.51091424]
[1645898699741,116.07053149,90.671,90.569,2.61299949]
[1645898699941,18.38380644,90.67,90.569,2.61299949]
[1645898700142,5.87097921,90.669,90.569,2.61299949]
[1645898700342,16.562,90.66,90.57,16.5633]
[1645898700547,16.562,90.66,90.571,2.4988214]
[1645898700743,16.562,90.66,90.572,4.414]
[1645898700942,23.1507,90.659,90.572,4.414]
[1645898701143,23.1507,90.659,90.571,2.4988214]
[1645898701542,23.1507,90.659,90.58,16.5615]
[1645898701943,23.1507,90.659,90.581,2.70261588]
[1645898702343,23.1507,90.659,90.572,2.74678921]
[1645898703549,23.1507,90.659,90.59,16.5603]
[1645898703754,23.1507,90.659,90.591,23.6124]
[1645898704849,23.1507,90.659,90.592,4.413]
[1645898705049,23.1507,90.659,90.593,48.11194013]
[1645898705250,23.1507,90.659,90.594,4.413]
[1645898705450,23.1507,90.659,90.6,16.5587]
[1645898706252,23.1507,90.659,90.601,2.57249765]
[1645898706653,23.1507,90.659,90.601,2.74678921]
[1645898706869,23.1507,90.659,90.602,2.74678921]
[1645898707471,23.1507,90.659,90.61,16.5552]
[1645898711976,23.1507,90.659,90.594,4.413]
[1645898712175,23.1507,90.659,90.59,55.1853]
[1645898712979,112.10702991,90.658,90.572,2.74678921]
[1645898713181,110.3,90.656,90.572,2.74678921]
[1645898713377,1.49878796,90.655,90.525,3.09980249]
[1645898713576,4.415,90.654,90.525,3.09980249]
[1645898713777,110.3,90.639,90.525,3.09980249]
[1645898714078,16.5705,90.62,90.54,16.5684]
[1645898714280,27.7931,90.619,90.54,16.5684]
[1645898714884,23.3781,90.619,90.54,16.5684]
[1645898715480,16.571,90.61,90.54,16.5684]
[1645898716981,16.571,90.61,90.526,55.0885873]
[1645898717179,16.5724,90.6,90.526,55.0885873]
[1645898717382,23.3266,90.599,90.526,55.0885873]
[1645898717680,1.70927774,90.598,90.524,22.6843]
[1645898718077,4.416,90.597,90.52,16.5719]
[1645898718278,1.70927774,90.598,90.52,16.5719]
[1645898718479,16.5742,90.59,90.521,157.64088914]
[1645898719580,16.5742,90.59,90.521,112.2]
[1645898719780,1.42868086,90.589,90.502,4.417]
[1645898719984,16.5792,90.57,90.502,4.417]
[1645898720281,25.1792,90.57,90.492,4.418]
[1645898720482,24.8926,90.569,90.492,4.418]
[1645898720681,24.8926,90.569,90.491,82.15524358]
[1645898721082,24.8926,90.569,90.491,84.6293099]
[1645898722584,24.8926,90.569,90.5,16.5765]
[1645898722783,24.8926,90.569,90.491,82.15524358]
[1645898722984,110.3,90.568,90.48,4.418]
[1645898723185,110.3,90.566,90.48,4.418]
[1645898723383,1.35970224,90.565,90.48,4.418]
[1645898723584,1.68046801,90.559,90.48,4.418]
[1645898723984,1.68046801,90.559,90.481,60.74739763]
[1645898724183,1.68046801,90.559,90.48,4.418]
[1645898724383,5.77727722,90.567,90.48,4.418]
[1645898724585,1.85677154,90.549,90.48,4.418]
[1645898724782,1.71745904,90.548,90.48,4.418]
[1645898724986,112.01745904,90.548,90.48,4.418]
[1645898725187,1.86941993,90.547,90.48,4.418]
[1645898725786,16.5845,90.54,90.48,4.418]
[1645898726185,1.70116304,90.539,90.48,4.418]
[1645898728288,23.0743,90.549,90.48,4.418]
[1645898729692,1.86726393,90.548,90.48,4.418]
[1645898733592,23.0743,90.549,90.48,4.418]
[1645898735092,27.4923,90.549,90.47,6.0008]
[1645898735493,1.48328475,90.565,90.47,6.0008]
[1645898735494,1.55377,90.609,90.471,120.0]
[1645898735694,1.36128891,90.649,90.51,16.5694]
[1645898735897,5.91,90.69,90.52,15.98]
[1645898735898,15.98,90.67,90.52,15.98]
[1645898736092,1.77408113,90.673,90.521,2.54478186]
[1645898736293,14.55623646,90.669,90.522,110.3]
[1645898736493,14.55623646,90.669,90.54,165.5189]
[1645898736697,1.62931322,90.668,90.55,126.28]
[1645898736895,14.55623646,90.672,90.551,2.79418218]
[1645898737092,14.55623646,90.672,90.552,4.414]
[1645898737293,4.414,90.703,90.56,199.71]
[1645898737500,6.17518311,90.703,90.571,110.3]
[1645898737698,16.5597,90.69,90.561,7.34931776]
[1645898737899,35.90816555,90.675,90.571,47.9380954]
[1645898738099,6.05271784,90.674,90.571,47.9380954]
[1645898738500,183.20447181,90.673,90.571,47.9380954]
[1645898738700,110.3,90.671,90.571,47.9380954]
[1645898739099,1.38884612,90.658,90.571,47.9380954]
[1645898739300,4.414,90.657,90.571,47.9380954]
[1645898739499,41.76621329,90.657,90.571,47.9380954]
[1645898739700,1.84204154,90.655,90.571,47.9380954]
[1645898739899,4.414,90.654,90.571,47.9380954]
[1645898740099,111.79695752,90.653,90.571,47.9380954]
[1645898740299,110.3,90.651,90.571,47.9380954]
[1645898740500,22.33317002,90.65,90.571,47.9380954]
[1645898740700,6.23270738,90.669,90.571,47.9380954]
[1645898740903,1.81870738,90.669,90.572,4.414]
[1645898741299,4.414,90.668,90.571,47.9380954]
[1645898741899,16.5638,90.66,90.58,16.5623]
[1645898742699,4.414,90.659,90.58,16.5623]
[1645898743303,16.5643,90.65,90.58,16.5623]
[1645898743500,16.5643,90.65,90.571,47.9380954]
[1645898744301,110.3,90.649,90.56,16.5646]
[1645898744502,16.5663,90.64,90.56,16.5646]
[1645898744702,4.415,90.639,90.56,16.5646]
[1645898744903,114.715,90.639,90.56,16.5646]
[1645898745103,1.38363992,90.638,90.507,2.27189295]
[1645898745402,1.38363992,90.638,90.45,199.71]
[1645898745403,1.41979794,90.636,90.508,49.8833756]
[1645898745803,176.49,90.634,90.508,49.8833756]
[1645898746004,110.3,90.619,90.51,16.5749]
[1645898746308,15.98,90.61,90.511,2.73730959]
[1645898747104,6.27900764,90.609,90.511,2.73730959]
[1645898748305,110.3,90.608,90.511,2.73730959]
[1645898748506,110.3,90.599,90.492,2.52438344]
[1645898748706,176.49,90.597,90.491,24.8046]
[1645898748909,1.48646158,90.596,90.481,112.2]
[1645898749106,1.43107999,90.593,90.481,112.2]
[1645898749308,110.3,90.589,90.481,112.2]
[1645898749505,110.3,90.587,90.482,43.41090173]
[1645898749705,110.3,90.585,90.482,43.41090173]
[1645898749906,110.3,90.583,90.482,43.41090173]
[1645898750106,4.418,90.582,90.482,43.41090173]
[1645898750306,110.3,90.581,90.482,43.41090173]
[1645898750506,16.5796,90.57,90.482,43.41090173]
[1645898750709,16.5796,90.57,90.483,2.74678921]
[1645898751306,4.418,90.569,90.483,2.74678921]
[1645898751706,110.3,90.577,90.483,2.74678921]
[1645898751912,110.3,90.575,90.483,2.74678921]
[1645898752108,5.89097679,90.574,90.483,2.74678921]
[1645898752310,6.24136668,90.579,90.483,2.74678921]
[1645898752508,16.5807,90.56,90.483,2.74678921]
[1645898758743,16.5807,90.56,90.484,4.418]
[1645898759141,16.5807,90.56,90.485,2.74678921]
[1645898759347,16.5807,90.56,90.49,16.5788]
[1645898759841,16.5807,90.56,90.491,2.74678921]
[1645898760746,16.5779,90.57,90.491,5.83907829]
[1645898760945,23.5293,90.577,90.501,2.57740516]
[1645898761445,23.5293,90.577,90.502,2.74678921]
[1645898761853,23.5293,90.577,90.51,16.5751]
[1645898762047,23.5293,90.577,90.511,50.41408887]
[1645898762249,23.5293,90.577,90.511,53.16087808]
[1645898763650,23.5293,90.577,90.512,2.74678921]
[1645898765253,110.3,90.569,90.493,2.74678921]
[1645898765451,1.68736172,90.566,90.47,2.64040764]
[1645898766254,1.68736172,90.566,90.471,54.46712761]
[1645898766452,16.583,90.55,90.471,54.46712761]
[1645898769955,16.586,90.53,90.465,47.4624]
[1645898770956,16.586,90.53,90.466,49.82685434]
[1645898772859,4.42,90.546,90.466,49.82685434]
[1645898773059,47.4016,90.547,90.467,2.88574638]
[1645898774259,16.5834,90.54,90.467,2.88574638]
[1645898774460,16.5834,90.54,90.466,49.82685434]
[1645898774659,24.4134,90.54,90.466,49.82685434]
[1645898775160,24.4134,90.54,90.445,3.07651641]
[1645898775161,110.3,90.529,90.42,2.54983101]
[1645898775461,16.5896,90.51,90.42,2.38306889]
[1645898775658,22.0196,90.51,90.42,2.38306889]
[1645898775859,22.0196,90.51,90.41,2.81922744]
[1645898775860,116.42163457,90.509,90.41,2.81922744]
[1645898776060,1.5577199,90.508,90.413,46.45603441]
[1645898776359,1.5577199,90.508,90.39,32.728]
[1645898776360,110.3,90.489,90.393,4.421]
[1645898776559,110.3,90.487,90.38,18.23468756]
[1645898776759,110.3,90.485,90.38,15.98]
[1645898776959,110.3,90.483,90.371,52.4421]
[1645898777160,110.3,90.481,90.372,60.41654463]
[1645898777360,30.73896882,90.482,90.372,60.41654463]
[1645898777361,110.3,90.479,90.372,60.41654463]
[1645898777565,110.3,90.477,90.372,60.41654463]
[1645898777764,1.42108021,90.469,90.372,60.41654463]
[1645898777962,6.20757914,90.468,90.372,60.41654463]
[1645898778167,4.423,90.468,90.372,60.41654463]
[1645898778361,4.423,90.472,90.372,60.41654463]
[1645898779563,16.5996,90.46,90.372,60.41654463]
[1645898779764,16.5996,90.46,90.373,4.423]
[1645898780463,16.5996,90.46,90.38,16.5981]
[1645898780664,16.5996,90.46,90.381,2.84027981]
[1645898780867,16.5996,90.46,90.38,16.5981]
[1645898782566,16.5996,90.46,90.381,2.94106651]
[1645898784470,110.3,90.459,90.38,16.5981]
[1645898784670,110.3,90.459,90.373,4.423]
[1645898784671,16.6009,90.45,90.373,4.423]
[1645898785770,16.6009,90.45,90.372,60.41654463]
[1645898786172,16.6009,90.45,90.372,62.71755588]
[1645898786372,16.6009,90.45,90.372,60.41654463]
[1645898786573,22.1309,90.45,90.372,60.41654463]
[1645898787879,1.36538217,90.449,90.372,60.41654463]
[1645898788076,16.6021,90.44,90.361,46.9031]
[1645898788277,110.3,90.438,90.336,4.424]
[1645898788477,66.19,90.433,90.336,4.424]
[1645898788678,66.19,90.427,90.336,4.424]
[1645898788880,176.49,90.416,90.336,4.424]
[1645898789078,110.3,90.414,90.336,4.424]
[1645898789290,66.19,90.411,90.336,4.424]
[1645898789493,1.73247725,90.405,90.336,4.424]
[1645898789699,110.3,90.404,90.336,4.424]
[1645898789896,110.3,90.402,90.336,4.424]
[1645898790098,1.43937434,90.401,90.336,4.424]
[1645898790296,126.9136,90.4,90.336,4.424]
[1645898790500,110.3,90.398,90.336,4.424]
[1645898790697,1.49115948,90.397,90.333,0.90454543]
[1645898790898,1.49115948,90.397,90.287,47.5117]
[1645898791099,1.49115948,90.397,90.288,2.46259496]
[1645898791301,110.3,90.373,90.291,2.74678921]
[1645898791498,110.3,90.359,90.291,2.24678921]
[1645898791698,110.3,90.357,90.201,47.5117]
[1645898791899,1.67460022,90.356,90.231,16.9398]
[1645898792098,4.429,90.355,90.232,2.86559985]
[1645898792299,5.87234322,90.355,90.263,58.68172248]
[1645898792498,16.6258,90.34,90.263,58.68172248]
[1645898792698,5.93570132,90.339,90.263,58.68172248]
[1645898792915,6.12828085,90.349,90.263,58.68172248]
[1645898793910,1.0,90.348,90.263,58.68172248]
[1645898794108,4.429,90.347,90.263,58.68172248]
[1645898794308,4.429,90.347,90.232,2.86559985]
[1645898794508,4.429,90.347,90.221,112.2]
[1645898794509,16.624,90.33,90.222,2.646997]
[1645898794712,5.81572708,90.329,90.225,16.7797]
[1645898794911,110.3,90.328,90.221,112.2]
[1645898795109,4.429,90.327,90.221,112.2]
[1645898795310,4.429,90.327,90.263,47.59988156]
[1645898795509,1.86436526,90.329,90.263,47.59988156]
[1645898795713,16.6247,90.33,90.263,47.59988156]
[1645898799313,24.5733,90.345,90.263,47.59988156]
[1645898799515,24.5733,90.345,90.264,2.74678921]
[1645898799914,24.5733,90.345,90.264,5.76355535]
[1645898800113,24.5733,90.345,90.264,5.28425126]
[1645898800313,24.5733,90.345,90.265,2.74678921]
[1645898801516,24.5733,90.345,90.27,16.6191]
[1645898801815,24.5733,90.345,90.264,2.90961131]
[1645898802614,24.5733,90.345,90.265,2.74678921]
[1645898802815,24.5733,90.345,90.27,16.6193]
[1645898803216,24.5733,90.345,90.271,5.60960275]
[1645898803817,15.98,90.36,90.271,5.60960275]
[1645898804019,16.6184,90.37,90.28,16.6176]
[1645898804217,16.6184,90.37,90.281,2.75406801]
[1645898804218,4.428,90.369,90.281,2.75406801]
[1645898804817,16.6184,90.37,90.281,2.75406801]
[1645898805220,16.6188,90.36,90.281,2.75406801]
[1645898805416,51.3382,90.359,90.264,3.07907586]
[1645898805616,46.9102,90.359,90.282,2.74678921]
[1645898808038,23.5421,90.359,90.282,2.74678921]
[1645898808821,24.5164,90.371,90.283,4.428]
[1645898809017,24.5164,90.371,90.282,2.74678921]
[1645898809217,22.9387,90.389,90.291,52.65379106]
[1645898809420,22.9387,90.389,90.291,60.18379106]
[1645898809619,22.9387,90.389,90.292,5.12130373]
[1645898810019,22.9387,90.389,90.293,7.17278921]
[1645898810420,22.9387,90.389,90.294,2.74678921]
[1645898810619,4.426,90.388,90.31,16.6104]
[1645898811020,122.296,90.388,90.292,2.37451452]
[1645898811426,117.87,90.388,90.292,2.37451452]
[1645898811626,4.426,90.387,90.292,2.37451452]
[1645898812323,16.6149,90.38,90.292,2.37451452]
[1645898812526,4.426,90.379,90.292,2.37451452]
[1645898814526,16.6164,90.37,90.292,2.37451452]
[1645898818745,16.6164,90.37,90.293,2.74678921]
[1645898823760,16.6164,90.37,90.292,2.37451452]
[1645898826258,16.6198,90.36,90.291,52.65379106]
[1645898826457,4.428,90.359,90.278,2.861469]
[1645898826663,1.64620904,90.358,90.261,2.74678921]
[1645898826857,1.36489903,90.356,90.261,2.74678921]
[1645898827058,4.429,90.355,90.261,2.74678921]
[1645898827459,110.3,90.353,90.265,48.02042115]
[1645898827659,110.3,90.349,90.265,48.02042115]
[1645898827859,110.3,90.347,90.265,48.02042115]
[1645898828261,16.623,90.34,90.265,48.02042115]
[1645898829664,16.623,90.34,90.264,22.8839]
[1645898829863,16.6251,90.33,90.264,22.8839]
[1645898830063,25.2451,90.33,90.264,22.8839]
[1645898830263,4.429,90.329,90.264,22.8839]
[1645898830864,110.3,90.319,90.22,21.0561]
[1645898831067,1.60011926,90.318,90.224,7.06930788]
[1645898831268,1.60011926,90.318,90.213,2.38883441]
[1645898831464,110.3,90.31,90.211,48.5751]
[1645898831669,110.3,90.299,90.211,48.5751]
[1645898831867,1.42698284,90.298,90.21,52.95998017]
[1645898832065,4.431,90.297,90.21,52.95998017]
[1645898832266,110.3,90.296,90.21,52.95998017]
[1645898832467,16.6361,90.28,90.21,52.95998017]
[1645898832666,4.432,90.279,90.21,52.95998017]
[1645898833166,4.432,90.279,90.192,3.00060075]
[1645898833167,180.922,90.279,90.192,3.00060075]
[1645898833366,1.81395522,90.268,90.188,16.8192]
[1645898833566,1.74255424,90.249,90.188,16.8192]
[1645898833767,9.86255424,90.249,90.188,16.8192]
[1645898833967,110.3,90.245,90.16,16.6389]
[1645898834169,110.3,90.245,90.172,49.39834932]
[1645898834470,1.53077956,90.244,90.182,16.2943]
[1645898834667,8.12,90.249,90.182,16.2943]
[1645898835067,16.1401,90.24,90.182,16.2943]
[1645898836367,1.38853415,90.239,90.182,16.2943]
[1645898836569,16.6419,90.23,90.182,16.2943]
[1645898837170,6.82,90.246,90.182,16.2943]
[1645898837369,15.98,90.25,90.182,16.2943]
[1645898837771,32.6198,90.25,90.182,16.2943]
[1645898837969,15.98,90.27,90.183,2.7180922]
[1645898838169,48.8373,90.269,90.183,2.7180922]
[1645898838772,48.8373,90.269,90.186,2.74678921]
[1645898839271,48.8373,90.269,90.191,2.79245745]
[1645898839673,48.8373,90.269,90.186,2.74678921]
[1645898840475,15.98,90.29,90.2,16.6325]
[1645898840675,4.432,90.289,90.201,56.49067813]
[1645898840875,4.432,90.306,90.202,112.94041619]
[1645898841077,1.39924789,90.317,90.203,158.86647434]
[1645898841276,1.39924789,90.317,90.204,2.71723756]
[1645898841477,1.39924789,90.317,90.204,21.43394536]
[1645898841679,1.39924789,90.317,90.205,2.94784185]
[1645898841902,1.39924789,90.317,90.206,2.25658524]
[1645898842100,1.39924789,90.317,90.206,20.97329304]
[1645898842299,1.39924789,90.317,90.207,21.81355552]
[1645898842501,47.895,90.316,90.22,16.6273]
[1645898842700,1.54758903,90.315,90.22,16.6273]
[1645898843099,1.54758903,90.315,90.221,2.74678921]
[1645898843499,47.895,90.316,90.221,2.74678921]
[1645898843700,47.895,90.316,90.231,58.99762958]
[1645898843899,47.895,90.316,90.232,2.68426901]
[1645898844103,47.895,90.316,90.232,5.43105822]
[1645898844500,47.895,90.316,90.233,2.74678921]
[1645898845499,47.895,90.316,90.24,16.6243]
[1645898845899,47.895,90.316,90.241,2.26330374]
[1645898847002,47.895,90.316,90.241,5.01009295]
[1645898847403,47.895,90.316,90.25,16.6231]
[1645898848002,16.6243,90.33,90.25,16.6231]
[1645898848203,16.6243,90.33,90.251,2.64573539]
[1645898849004,15.98,90.34,90.251,2.64573539]
[1645898849406,15.98,90.34,90.26,16.6214]
[1645898849606,15.98,90.34,90.261,62.33265409]
[1645898849810,15.98,90.34,90.262,2.75575681]
[1645898851806,32.6028,90.34,90.262,2.75575681]
[1645898852005,32.6028,90.34,90.261,59.66702985]
[1645898852206,4.429,90.339,90.261,59.66702985]
[1645898852509,114.729,90.339,90.241,2.967999]
[1645898852706,110.3,90.337,90.241,2.967999]
[1645898852906,5.92844014,90.336,90.241,2.967999]
[1645898853508,16.6246,90.33,90.242,50.20933762]
[1645898853706,4.43,90.329,90.242,50.20933762]
[1645898854307,4.43,90.329,90.242,49.70933762]
[1645898854308,116.49595585,90.329,90.242,49.70933762]
[1645898854508,15.98,90.32,90.242,49.70933762]
[1645898854708,4.43,90.319,90.242,49.70933762]
[1645898855509,6.02,90.319,90.242,49.70933762]
[1645898857015,32.6062,90.32,90.242,49.70933762]
[1645898857213,4.43,90.319,90.242,49.70933762]
[1645898857413,32.6062,90.32,90.242,49.70933762]
[1645898862820,15.98,90.32,90.242,49.70933762]
[1645898863016,15.98,90.32,90.25,16.6229]
[1645898863517,23.6868,90.327,90.251,2.74678921]
[1645898865619,23.6868,90.327,90.261,60.61252194]
[1645898865915,23.6868,90.327,90.262,2.89163096]
[1645898866317,23.6868,90.327,90.262,5.63842017]
[1645898867224,4.43,90.358,90.271,2.80079645]
[1645898867420,23.3774,90.357,90.272,110.3]
[1645898867618,4.428,90.378,90.272,5.84062097]
[1645898867818,23.3774,90.377,90.273,114.728]
[1645898868029,4.428,90.392,90.274,2.91376511]
[1645898868225,50.5028,90.411,90.283,110.3]
[1645898868427,50.5028,90.411,90.291,110.3]
[1645898868624,46.0748,90.411,90.293,110.3]
[1645898868821,46.0748,90.411,90.295,110.3]
[1645898869021,46.0748,90.411,90.311,110.3]
[1645898869224,46.0748,90.411,90.321,110.3]
[1645898869423,4.426,90.429,90.322,2.73992216]
[1645898869622,4.425,90.449,90.325,2.49438481]
[1645898869825,23.0442,90.449,90.331,110.3]
[1645898870023,23.0442,90.449,90.333,110.3]
[1645898870226,4.425,90.466,90.335,110.3]
[1645898870424,4.425,90.466,90.337,110.3]
[1645898870628,4.425,90.466,90.341,110.3]
[1645898870823,16.6016,90.45,90.37,16.6007]
[1645898871025,16.6016,90.45,90.371,60.75425669]
[1645898871725,18.09674256,90.45,90.371,60.75425669]
[1645898871924,16.6016,90.45,90.371,60.75425669]
[1645898872725,16.6016,90.45,90.372,2.82360856]
[1645898873326,16.6016,90.45,90.371,60.75425669]
[1645898878550,20.80722844,90.467,90.371,60.75425669]
[1645898878753,20.80722844,90.467,90.372,2.77707974]
[1645898878954,180.913,90.466,90.372,2.77707974]
[1645898879151,16.6016,90.45,90.351,2.48918081]
[1645898879354,110.3,90.439,90.329,2.73568352]
[1645898879651,110.3,90.429,90.329,2.73568352]
[1645898879852,4.425,90.428,90.329,2.73568352]
[1645898880051,110.3,90.425,90.305,16.8191]
[1645898880253,15.98,90.41,90.306,2.34450526]
[1645898880454,110.3,90.399,90.306,2.34450526]
[1645898881053,0.5,90.398,90.308,2.49651815]
[1645898881458,16.6146,90.38,90.308,2.49651815]
[1645898886361,24.6357,90.409,90.307,51.03102936]
[1645898886362,24.6357,90.409,90.31,16.6122]
[1645898886565,24.6357,90.409,90.311,6.71846875]
[1645898886762,24.6357,90.409,90.311,9.46525796]
[1645898887362,24.6357,90.409,90.312,113.04678921]
[1645898887563,24.6357,90.409,90.331,52.15649606]
[1645898887764,24.6357,90.409,90.331,54.48542717]
[1645898887963,24.6357,90.409,90.332,2.68174919]
[1645898890867,24.6357,90.409,90.34,16.6067]
[1645898891068,24.6357,90.409,90.341,2.99459381]
[1645898891467,4.426,90.433,90.341,2.99459381]
[1645898891670,22.8448,90.443,90.332,46.7657]
[1645898891866,4.425,90.442,90.333,110.3]
[1645898892067,4.425,90.442,90.334,2.40035016]
[1645898892467,16.6063,90.43,90.351,57.53398858]
[1645898892969,16.6063,90.43,90.352,3.04546984]
[1645898895172,4.425,90.442,90.361,2.51077315]
[1645898895471,22.8448,90.443,90.361,2.51077315]
[1645898897171,22.8448,90.443,90.371,57.98989157]
[1645898897371,22.8448,90.443,90.372,2.57675091]
[1645898904010,22.8448,90.443,90.38,16.5994]
[1645898904314,22.8448,90.443,90.381,3.00018462]
[1645898905510,24.0004,90.46,90.381,3.00018462]
[1645898907419,24.0004,90.46,90.39,16.5973]
[1645898907716,24.0004,90.46,90.391,58.63900007]
[1645898907916,24.0004,90.46,90.392,2.90068184]
[1645898909324,40.6002,90.46,90.392,2.90068184]
[1645898909524,40.6002,90.46,90.371,2.30258602]
[1645898909721,27.0511,90.459,90.371,2.30258602]
[1645898910120,27.0511,90.459,90.372,50.22139644]
[1645898910321,27.0511,90.459,90.373,2.88579452]
[1645898910924,1.5,90.458,90.373,2.88579452]
[1645898911123,1.5,90.458,90.38,16.5992]
[1645898911325,1.5,90.458,90.381,2.67459182]
[1645898911523,27.0511,90.459,90.381,2.67459182]
[1645898911724,22.6271,90.459,90.381,2.67459182]
[1645898913928,16.6017,90.45,90.373,2.31814019]
[1645898918030,22.6271,90.459,90.373,2.31814019]
[1645898918231,22.6271,90.459,90.38,16.5991]
[1645898918432,22.6271,90.459,90.381,2.80004476]
[1645898920235,22.6271,90.459,90.381,16.3486]
[1645898920437,22.6271,90.459,90.382,2.96754374]
[1645898928575,22.6271,90.459,90.382,19.54004374]
[1645898928772,22.6271,90.459,90.383,2.4939731]
[1645898929182,13.57973649,90.458,90.373,2.4018596]
[1645898929376,114.724,90.457,90.373,2.4018596]
[1645898929575,13.57973649,90.456,90.365,3.11780659]
[1645898929777,110.3,90.455,90.365,3.11780659]
[1645898930178,18.00373649,90.454,90.365,3.11780659]
[1645898930477,16.6018,90.45,90.365,3.11780659]
[1645898930682,4.424,90.449,90.365,3.11780659]